fUST/lending_fUST_20240110
["ID","MTS","AMOUNT","RATE_DAILY","PERIOD"]
[311070780,1704893439957,-500.0,0.00028493,2]
[311070781,1704893439967,-500.0,0.00028493,2]
[311070782,1704893439977,-3408.89,0.00028493,2]
[311070783,1704893439987,-1557.67,0.00028493,2]
[311070784,1704893439996,-1282.44,0.00028493,2]
[311070785,1704893440006,-500.0,0.00028493,2]
[311070786,1704893440015,-500.0,0.00028493,2]
[311070787,1704893440025,-500.0,0.00028493,2]
[311070788,1704893440034,-1001.27,0.00028493,2]
[311070789,1704893440043,-673.46,0.00028493,2]
[311070790,1704893440054,-1209.64,0.00028493,2]
[311070791,1704893440063,-500.0,0.00028493,2]
[311070792,1704893440072,-500.0,0.00028493,2]
[311070793,1704893440081,-1029.19,0.00028493,2]
[311070794,1704893440091,-233.49017488,0.000286,2]
[311070795,1704893440100,-500.0,0.0002863,2]
[311070796,1704893440110,-160.0,0.00028663,10]
[311070797,1704893440119,-160.0,0.00028663,10]
[311070798,1704893440129,-276000.0,0.00028664,2]
[311070799,1704893440138,-3512.77098084,0.000287,14]
[311070800,1704893440147,-230.91662442,0.00028755,2]
[311070801,1704893440156,-2813.88338109,0.00028755,2]
[311070802,1704893440165,-165.29515424,0.00028755,2]
[311070803,1704893440174,-156.20690451,0.00028764,2]
[311070804,1704893440183,-560.22977717,0.00028764,2]
[311070805,1704893440193,-15656.77459625,0.00028764,2]
[311070806,1704893440202,-755.000001,0.00028764,2]
[311070808,1704893440210,-262.35393072,0.00028764,2]
[311070809,1704893440219,-576.15495713,0.00028764,2]
[311070810,1704893440228,-2926.57589157,0.00028764,2]
[311070811,1704893440237,-269.82050598,0.00028764,2]
[311070812,1704893440246,-1472.01644943,0.00028764,2]
[311070813,1704893440255,-500.0,0.00028767,2]
[311070814,1704893440264,-504.18,0.00028767,2]
[311070815,1704893440273,-500.0,0.00028767,2]
[311070816,1704893440283,-428.04452194,0.00028767,2]
[311070817,1704893440291,-894.07,0.00028767,2]
[311070818,1704893440302,-500.0,0.00028767,2]
[311070819,1704893440315,-675.31,0.00028767,2]
[311070820,1704893440324,-500.0,0.00028767,2]
[311070821,1704893440333,-500.0,0.00028767,2]
[311070822,1704893440342,-500.0,0.00028767,2]
[311070823,1704893440351,-500.0,0.00028767,2]
[311070824,1704893440360,-500.0,0.00028767,2]
[311070825,1704893440370,-500.0,0.00028767,2]
[311070826,1704893440379,-710.8,0.00028767,2]
[311070827,1704893440388,-2517.97,0.00028767,2]
[311070828,1704893440397,-500.0,0.00028767,2]
[311070829,1704893440406,-500.0,0.00028767,2]
[311070830,1704893440415,-409.47377034,0.00028767,2]
[311070831,1704893440424,-1236.01,0.00028767,2]
[311070832,1704893440434,-500.0,0.00028767,2]
[311070833,1704893440443,-500.0,0.00028767,2]
[311070834,1704893440452,-500.0,0.00028767,2]
[311070835,1704893440461,-500.0,0.00028767,2]
[311070836,1704893440471,-518.9,0.00028767,2]
[311070837,1704893440480,-671.08,0.00028767,2]
[311070838,1704893440490,-500.0,0.00028767,2]
[311070839,1704893440499,-500.0,0.00028767,2]
[311070840,1704893440508,-500.0,0.00028767,2]
[311070841,1704893440517,-897.99,0.00028767,2]
[311070842,1704893440526,-500.0,0.00028767,2]
[311070843,1704893440535,-500.0,0.00028767,2]
[311070844,1704893440545,-330.22912445,0.00028767,2]
[311070845,1704893440556,-500.0,0.00028767,2]
[311070846,1704893440565,-975.28,0.00028767,2]
[311070847,1704893440573,-500.0,0.00028767,2]
[311070848,1704893440582,-517.6,0.00028767,2]
[311070849,1704893440591,-500.0,0.00028767,2]
[311070850,1704893440600,-500.0,0.00028767,2]
[311070851,1704893440609,-1217.42,0.00028767,2]
[311070852,1704893440618,-500.0,0.00028767,2]
[311070853,1704893440627,-564.5,0.00028767,2]
[311070854,1704893440637,-4654.66,0.00028767,2]
[311070855,1704893440646,-575.83249262,0.00028767,2]
[311070856,1704893440655,-6008.2,0.00028767,2]
[311070857,1704893440665,-500.0,0.00028767,2]
[311070858,1704893440675,-1436.81,0.00028767,2]
[311070859,1704893440684,-500.0,0.00028767,2]
[311070860,1704893440694,-500.0,0.00028767,2]
[311070861,1704893440702,-500.0,0.00028767,2]
[311070862,1704893440711,-1092.69,0.00028767,2]
[311070863,1704893440721,-2756.43,0.00028767,2]
[311070864,1704893440730,-532.77,0.00028767,2]
[311070865,1704893440740,-4344.41,0.00028767,2]
[311070866,1704893440750,-500.0,0.00028767,2]
[311070867,1704893440759,-500.0,0.00028767,5]
[311070868,1704893440769,-36439.63,0.00028767,2]
[311070869,1704893440778,-1095.23,0.00028767,2]
[311070870,1704893440788,-2067.4,0.00028767,2]
[311070871,1704893440797,-500.0,0.00028767,2]
[311070872,1704893440811,-155.0,0.00028767,2]
[311070873,1704893440820,-9174.44,0.00028767,2]
[311070874,1704893440829,-500.0,0.00028767,2]
[311070875,1704893440839,-1518.78,0.00028767,2]
[311070877,1704893440848,-2773.62,0.00028767,2]
[311070879,1704893440859,-1573.03,0.00028767,2]
[311070881,1704893440869,-500.0,0.00028767,2]
[311070883,1704893440878,-1222.69,0.00028767,2]
[311070884,1704893440888,-500.0,0.00028767,2]
[311070885,1704893440898,-500.0,0.00028767,2]
[311070886,1704893440907,-1991.13,0.00028767,2]
[311070888,1704893440917,-500.0,0.00028767,2]
[311070889,1704893440926,-694.98,0.00028767,2]
[311070890,1704893440936,-710.57,0.00028767,2]
[311070891,1704893440945,-500.0,0.00028767,2]
[311070892,1704893440954,-500.0,0.00028767,2]
[311070893,1704893440964,-3408.89,0.00028767,2]
[311070894,1704893440974,-1557.67,0.00028767,2]
[311070896,1704893440985,-1282.44,0.00028767,2]
[311070898,1704893440995,-500.0,0.00028767,2]
[311070900,1704893441004,-500.0,0.00028767,2]
[311070901,1704893441015,-500.0,0.00028767,2]
[311070902,1704893441025,-1001.27,0.00028767,2]
[311070903,1704893441035,-673.46,0.00028767,2]
[311070904,1704893441043,-1209.64,0.00028767,2]
[311070905,1704893441057,-500.0,0.00028767,2]
[311070906,1704893441066,-500.0,0.00028767,2]
[311070907,1704893441075,-1029.19,0.00028767,2]
[311070908,1704893441084,-43342.82935125,0.000288,2]
[311070909,1704893441093,-50000.0,0.00028959,5]
[311070910,1704893441104,-1982.97164167,0.00029,2]
[311070911,1704893441113,-1500.0,0.00029,2]
[311070912,1704893441122,-212.86429376,0.00029037,2]
[311070913,1704893441131,-155.45330609,0.00029039,2]
[311070914,1704893441140,-3612.07378676,0.0002904,2]
[311070915,1704893441149,-2090.79958179,0.0002904,2]
[311070916,1704893441158,-500.0,0.00029041,2]
[311070917,1704893441167,-504.18,0.00029041,2]
[311070918,1704893441176,-500.0,0.00029041,2]
[311070919,1704893441185,-894.07,0.00029041,2]
[311070920,1704893441193,-500.0,0.00029041,2]
[311070921,1704893441202,-675.31,0.00029041,2]
[311070922,1704893441211,-500.0,0.00029041,2]
[311070923,1704893441220,-500.0,0.00029041,2]
[311070924,1704893441229,-500.0,0.00029041,2]
[311070925,1704893441238,-500.0,0.00029041,2]
[311070926,1704893441247,-500.0,0.00029041,2]
[311070927,1704893441256,-500.0,0.00029041,2]
[311070928,1704893441265,-710.8,0.00029041,2]
[311070929,1704893441274,-2517.97,0.00029041,2]
[311070930,1704893441283,-183.73886406,0.00029041,2]
[311070931,1704893441292,-500.0,0.00029041,2]
[311070932,1704893441304,-1236.01,0.00029041,2]
[311070933,1704893441318,-500.0,0.00029041,2]
[311070934,1704893441327,-500.0,0.00029041,2]
[311070935,1704893441336,-500.0,0.00029041,2]
[311070936,1704893441345,-500.0,0.00029041,2]
[311070937,1704893441355,-518.9,0.00029041,2]
[311070938,1704893441365,-671.08,0.00029041,2]
[311070939,1704893441374,-500.0,0.00029041,2]
[311070940,1704893441384,-500.0,0.00029041,2]
[311070941,1704893441393,-897.99,0.00029041,2]
[311070942,1704893441402,-500.0,0.00029041,2]
[311070943,1704893441412,-500.0,0.00029041,2]
[311070944,1704893441421,-500.0,0.00029041,2]
[311070945,1704893441430,-975.28,0.00029041,2]
[311070946,1704893441440,-500.0,0.00029041,2]
[311070947,1704893441449,-517.6,0.00029041,2]
[311070948,1704893441458,-500.0,0.00029041,2]
[311070949,1704893441467,-500.0,0.00029041,2]
[311070950,1704893441476,-1217.42,0.00029041,2]
[311070951,1704893441485,-500.0,0.00029041,2]
[311070952,1704893441494,-564.5,0.00029041,2]
[311070953,1704893441504,-4654.66,0.00029041,2]
[311070954,1704893441513,-6008.2,0.00029041,2]
[311070955,1704893441523,-500.0,0.00029041,2]
[311070956,1704893441533,-1436.81,0.00029041,2]
[311070957,1704893441542,-500.0,0.00029041,2]
[311070958,1704893441554,-500.0,0.00029041,2]
[311070959,1704893441562,-500.0,0.00029041,2]
[311070960,1704893441572,-1092.69,0.00029041,2]
[311070961,1704893441581,-2756.43,0.00029041,2]
[311070962,1704893441590,-532.77,0.00029041,2]
[311070963,1704893441599,-4344.41,0.00029041,2]
[311070964,1704893441608,-500.0,0.00029041,2]
[311070965,1704893441617,-158.5365866,0.00029041,5]
[311070966,1704893441626,-33688.54108342,0.00029041,2]
[311070968,1704893441743,-2751.08891658,0.00029041,2]
[311070969,1704893441754,-1095.23,0.00029041,2]
[311070970,1704893441764,-2067.4,0.00029041,2]
[311070971,1704893441774,-500.0,0.00029041,2]
[311070972,1704893441783,-9174.44,0.00029041,2]
[311070973,1704893441793,-500.0,0.00029041,2]
[311070974,1704893441805,-1518.78,0.00029041,2]
[311070975,1704893441815,-1573.03,0.00029041,2]
[311070976,1704893441825,-2773.62,0.00029041,2]
[311070977,1704893441834,-500.0,0.00029041,2]
[311070978,1704893441845,-1222.69,0.00029041,2]
[311070979,1704893441854,-500.0,0.00029041,2]
[311070980,1704893441863,-500.0,0.00029041,2]
[311070981,1704893441872,-1991.13,0.00029041,2]
[311070982,1704893441882,-500.0,0.00029041,2]
[311070983,1704893441892,-694.98,0.00029041,2]
[311070984,1704893441902,-710.57,0.00029041,2]
[311070985,1704893441912,-500.0,0.00029041,2]
[311070986,1704893441921,-500.0,0.00029041,2]
[311070987,1704893441930,-3408.89,0.00029041,2]
[311070988,1704893441940,-1557.67,0.00029041,2]
[311070989,1704893441949,-1282.44,0.00029041,2]
[311070990,1704893441958,-500.0,0.00029041,2]
[311070991,1704893441968,-500.0,0.00029041,2]
[311070992,1704893441977,-500.0,0.00029041,2]
[311070993,1704893441987,-1001.27,0.00029041,2]
[311070994,1704893441996,-673.46,0.00029041,2]
[311070995,1704893442006,-1209.64,0.00029041,2]
[311070996,1704893442015,-500.0,0.00029041,2]
[311070997,1704893442024,-500.0,0.00029041,2]
[311070998,1704893442034,-1029.19,0.00029041,2]
[311070999,1704893442044,-474.648149,0.00029041,2]
[311071000,1704893442056,-474.648149,0.00029041,2]
[311071001,1704893442065,-202.5,0.00029041,2]
[311071002,1704893442074,-202.5,0.00029041,2]
[311071003,1704893442083,-620.00862642,0.00029106,2]
[311071004,1704893442092,-6000.0,0.0002914,2]
[311071005,1704893442101,-5999.99,0.0002928,2]
[311071006,1704893442110,-156.3355925,0.00029315,2]
[311071007,1704893442120,-500.0,0.00029315,2]
[311071008,1704893442129,-504.18,0.00029315,2]
[311071009,1704893442138,-500.0,0.00029315,2]
[311071010,1704893442147,-894.07,0.00029315,2]
[311071011,1704893442156,-500.0,0.00029315,2]
[311071012,1704893442165,-675.31,0.00029315,2]
[311071013,1704893442174,-500.0,0.00029315,2]
[311071014,1704893442183,-500.0,0.00029315,2]
[311071015,1704893442193,-500.0,0.00029315,2]
[311071016,1704893442202,-500.0,0.00029315,2]
[311071017,1704893442212,-500.0,0.00029315,2]
[311071018,1704893442221,-533.73436023,0.00029315,2]
[311071019,1704893442231,-710.8,0.00029315,2]
[311071020,1704893442240,-2517.97,0.00029315,2]
[311071021,1704893442249,-500.0,0.00029315,2]
[311071022,1704893442258,-1236.01,0.00029315,2]
[311071023,1704893442267,-532.41305287,0.00029315,2]
[311071024,1704893442277,-500.0,0.00029315,2]
[311071025,1704893442286,-500.0,0.00029315,2]
[311071026,1704893442295,-500.0,0.00029315,2]
[311071027,1704893442308,-518.9,0.00029315,2]
[311071028,1704893442319,-671.08,0.00029315,2]
[311071029,1704893442328,-500.0,0.00029315,2]
[311071030,1704893442337,-500.0,0.00029315,2]
[311071031,1704893442347,-897.99,0.00029315,2]
[311071032,1704893442357,-500.0,0.00029315,2]
[311071033,1704893442366,-500.0,0.00029315,2]
[311071034,1704893442375,-613.79796148,0.00029315,2]
[311071035,1704893442385,-975.28,0.00029315,2]
[311071036,1704893442394,-500.0,0.00029315,2]
[311071037,1704893442403,-517.6,0.00029315,2]
[311071038,1704893442412,-500.0,0.00029315,2]
[311071039,1704893442422,-500.0,0.00029315,2]
[311071040,1704893442431,-1217.42,0.00029315,2]
[311071042,1704893442440,-500.0,0.00029315,2]
[311071044,1704893442450,-564.5,0.00029315,2]
[311071046,1704893442459,-4654.66,0.00029315,2]
[311071048,1704893442468,-6008.2,0.00029315,2]
[311071050,1704893442478,-500.0,0.00029315,2]
[311071052,1704893442488,-1436.81,0.00029315,2]
[311071053,1704893442498,-500.0,0.00029315,2]
[311071055,1704893442507,-500.0,0.00029315,2]
[311071057,1704893442516,-500.0,0.00029315,2]
[311071059,1704893442525,-1092.69,0.00029315,2]
[311071061,1704893442535,-2756.43,0.00029315,2]
[311071063,1704893442545,-532.77,0.00029315,2]
[311071065,1704893442556,-4344.41,0.00029315,2]
[311071067,1704893442565,-500.0,0.00029315,2]
[311071069,1704893442574,-36439.63,0.00029315,2]
[311071071,1704893442583,-1095.23,0.00029315,2]
[311071073,1704893442594,-2067.4,0.00029315,2]
[311071075,1704893442604,-500.0,0.00029315,2]
[311071076,1704893442614,-9174.44,0.00029315,2]
[311071077,1704893442623,-500.0,0.00029315,2]
[311071080,1704893442633,-1518.78,0.00029315,2]
[311071082,1704893442642,-1573.03,0.00029315,2]
[311071083,1704893442651,-2773.62,0.00029315,2]
[311071085,1704893442660,-500.0,0.00029315,2]
[311071087,1704893442669,-1222.69,0.00029315,2]
[311071090,1704893442679,-500.0,0.00029315,2]
[311071092,1704893442688,-500.0,0.00029315,2]
[311071094,1704893442698,-1991.13,0.00029315,2]
[311071095,1704893442707,-500.0,0.00029315,2]
[311071097,1704893442716,-694.98,0.00029315,2]
[311071098,1704893442727,-710.57,0.00029315,2]
[311071100,1704893442736,-500.0,0.00029315,2]
[311071102,1704893442747,-500.0,0.00029315,2]
[311071103,1704893442757,-3408.89,0.00029315,2]
[311071105,1704893442768,-1557.67,0.00029315,2]
[311071107,1704893442779,-1282.44,0.00029315,2]
[311071108,1704893442789,-500.0,0.00029315,2]
[311071110,1704893442799,-500.0,0.00029315,2]
[311071111,1704893442814,-500.0,0.00029315,2]
[311071113,1704893442825,-1001.27,0.00029315,2]
[311071115,1704893442835,-673.46,0.00029315,2]
[311071116,1704893442844,-1209.64,0.00029315,2]
[311071117,1704893442854,-647.31295981,0.00029315,2]
[311071118,1704893442864,-500.0,0.00029315,2]
[311071119,1704893442873,-1029.19,0.00029315,2]
[311071120,1704893442884,-305.01426273,0.00029462,2]
[311071121,1704893442894,-154.86062544,0.00029462,2]
[311071122,1704893442905,-186.89085358,0.000295,2]
[311071124,1704893442995,-2254.20547172,0.000295,2]
[311071144,1704893443480,-525.91402641,0.00026,2]
[311071145,1704893443490,-515.0953029,0.00027397,2]
[311071146,1704893443499,-500.0,0.00027397,2]
[311071147,1704893443509,-500.0,0.00028219,2]
[311071148,1704893443518,-500.0,0.00028493,2]
[311071149,1704893443527,-500.0,0.00028767,2]
[311071150,1704893443536,-500.0,0.00029041,2]
[311071151,1704893443546,-500.0,0.00029315,2]
[311071152,1704893443557,-40214.25115998,0.000295,2]
[311071153,1704893443567,-504.18,0.00029589,2]
[311071154,1704893443576,-500.0,0.00029589,2]
[311071155,1704893443585,-894.07,0.00029589,2]
[311071156,1704893443594,-500.0,0.00029589,2]
[311071157,1704893443603,-675.31,0.00029589,2]
[311071158,1704893443612,-500.0,0.00029589,2]
[311071159,1704893443622,-500.0,0.00029589,2]
[311071160,1704893443630,-500.0,0.00029589,2]
[311071161,1704893443639,-500.0,0.00029589,2]
[311071162,1704893443648,-500.0,0.00029589,2]
[311071163,1704893443657,-710.8,0.00029589,2]
[311071164,1704893443666,-2517.97,0.00029589,2]
[311071165,1704893443675,-500.0,0.00029589,2]
[311071166,1704893443685,-1236.01,0.00029589,2]
[311071167,1704893443694,-500.0,0.00029589,2]
[311071168,1704893443704,-500.0,0.00029589,2]
[311071169,1704893443713,-500.0,0.00029589,2]
[311071170,1704893443723,-518.9,0.00029589,2]
[311071171,1704893443733,-671.08,0.00029589,2]
[311071172,1704893443742,-500.0,0.00029589,2]
[311071173,1704893443751,-500.0,0.00029589,2]
[311071174,1704893443761,-897.99,0.00029589,2]
[311071175,1704893443771,-500.0,0.00029589,2]
[311071176,1704893443780,-185.62363994,0.00029589,2]
[311071177,1704893443790,-975.28,0.00029589,2]
[311071178,1704893443800,-500.0,0.00029589,2]
[311071179,1704893443813,-517.6,0.00029589,2]
[311071180,1704893443823,-500.0,0.00029589,2]
[311071181,1704893443833,-500.0,0.00029589,2]
[311071182,1704893443843,-1217.42,0.00029589,2]
[311071183,1704893443853,-500.0,0.00029589,2]
[311071184,1704893443863,-564.5,0.00029589,2]
[311071185,1704893443873,-4654.66,0.00029589,2]
[311071186,1704893443884,-6008.2,0.00029589,2]
[311071187,1704893443893,-440.4046281,0.00029589,2]
[311071188,1704893443903,-1436.81,0.00029589,2]
[311071189,1704893444011,-500.0,0.00029589,2]
[311071190,1704893444021,-500.0,0.00029589,2]
[311071191,1704893444031,-500.0,0.00029589,2]
[311071192,1704893444041,-1092.69,0.00029589,2]
[311071193,1704893444051,-2756.43,0.00029589,2]
[311071194,1704893444063,-532.77,0.00029589,2]
[311071195,1704893444073,-4344.41,0.00029589,2]
[311071196,1704893444082,-248.16618608,0.00029589,2]
[311071197,1704893444091,-36439.63,0.00029589,2]
[311071198,1704893444101,-1095.23,0.00029589,2]
[311071199,1704893444110,-2067.4,0.00029589,2]
[311071200,1704893444120,-500.0,0.00029589,2]
[311071201,1704893444129,-9174.44,0.00029589,2]
[311071202,1704893444138,-500.0,0.00029589,2]
[311071203,1704893444148,-1518.78,0.00029589,2]
[311071204,1704893444158,-2773.62,0.00029589,2]
[311071205,1704893444167,-1573.03,0.00029589,2]
[311071206,1704893444176,-500.0,0.00029589,2]
[311071207,1704893444186,-1222.69,0.00029589,2]
[311071208,1704893444195,-529.27051169,0.00029589,2]
[311071209,1704893444204,-500.0,0.00029589,2]
[311071210,1704893444214,-1991.13,0.00029589,2]
[311071211,1704893444223,-507.5546075,0.00029589,2]
[311071212,1704893444232,-694.98,0.00029589,2]
[311071213,1704893444241,-710.57,0.00029589,2]
[311071214,1704893444251,-500.0,0.00029589,2]
[311071215,1704893444260,-500.0,0.00029589,2]
[311071216,1704893444270,-3408.89,0.00029589,2]
[311071217,1704893444280,-1557.67,0.00029589,2]
[311071218,1704893444289,-1282.44,0.00029589,2]
[311071219,1704893444298,-217.88755677,0.00029589,2]
[311071220,1704893444313,-334.96709269,0.00029589,2]
[311071221,1704893444323,-583.02535419,0.00029589,2]
[311071222,1704893444333,-1001.27,0.00029589,2]
[311071223,1704893444342,-673.46,0.00029589,2]
[311071224,1704893444351,-1209.64,0.00029589,2]
[311071225,1704893444360,-500.0,0.00029589,2]
[311071226,1704893444370,-1029.19,0.00029589,2]
[311071227,1704893444379,-500.0,0.00029589,2]
[311071228,1704893444389,-474.648149,0.00029589,2]
[311071229,1704893444400,-474.648149,0.00029589,2]
[311071230,1704893444409,-493.028705,0.00029589,2]
[311071231,1704893444418,-493.028705,0.00029589,2]
[311071232,1704893444428,-300.0,0.000296,14]
[311071233,1704893444438,-202.5,0.00029659,2]
[311071234,1704893444447,-202.5,0.00029659,2]
[311071235,1704893444457,-429.54094301,0.00029659,2]
[311071236,1704893444466,-1859.03037709,0.00029659,2]
[311071237,1704893444476,-34899.45070461,0.00029659,7]
[311071238,1704893444485,-7225.17464422,0.00029663,7]
[311071239,1704893444494,-151.0,0.00029732,2]
[311071240,1704893444504,-160581.56908654,0.0002979,7]
[311071241,1704893444515,-68486.51132651,0.0002979,7]
[311071242,1704893444524,-474.648149,0.0002979,2]
[311071243,1704893444534,-474.648149,0.0002979,2]
[311071244,1704893444543,-156.9861041,0.00029863,2]
[311071245,1704893444553,-194.08103188,0.00029863,2]
[311071246,1704893444566,-205.70237097,0.00029863,2]
[311071247,1704893444575,-166.49187593,0.00029863,2]
[311071248,1704893444584,-504.18,0.00029863,2]
[311071249,1704893444593,-500.0,0.00029863,2]
[311071250,1704893444603,-894.07,0.00029863,2]
[311071251,1704893444613,-500.0,0.00029863,2]
[311071252,1704893444622,-675.31,0.00029863,2]
[311071253,1704893444631,-346.77438312,0.00029863,2]
[311071254,1704893444640,-500.0,0.00029863,2]
[311071255,1704893444650,-500.0,0.00029863,2]
[311071256,1704893444660,-416.2622589,0.00029863,2]
[311071257,1704893444671,-500.0,0.00029863,2]
[311071258,1704893444681,-710.8,0.00029863,2]
[311071259,1704893444691,-2517.97,0.00029863,2]
[311071260,1704893444701,-500.19121575,0.00029863,2]
[311071261,1704893444712,-1236.01,0.00029863,2]
[311071262,1704893444721,-500.0,0.00029863,2]
[311071263,1704893444731,-500.20689243,0.00029863,2]
[311071264,1704893444741,-500.0,0.00029863,2]
[311071265,1704893444750,-518.9,0.00029863,2]
[311071266,1704893444760,-671.08,0.00029863,2]
[311071267,1704893444769,-500.0,0.00029863,2]
[311071268,1704893444779,-500.0,0.00029863,2]
[311071269,1704893444788,-897.99,0.00029863,2]
[311071270,1704893444797,-500.0,0.00029863,2]
[311071271,1704893444810,-975.28,0.00029863,2]
[311071272,1704893444820,-500.0,0.00029863,2]
[311071273,1704893444829,-517.6,0.00029863,2]
[311071274,1704893444839,-500.0,0.00029863,2]
[311071275,1704893444849,-500.0,0.00029863,2]
[311071276,1704893444859,-1217.42,0.00029863,2]
[311071277,1704893444868,-500.0,0.00029863,2]
[311071278,1704893444878,-564.5,0.00029863,2]
[311071279,1704893444888,-4654.66,0.00029863,2]
[311071280,1704893444898,-6008.2,0.00029863,2]
[311071281,1704893444909,-1436.81,0.00029863,2]
[311071282,1704893444919,-500.0,0.00029863,2]
[311071283,1704893444929,-537.80197756,0.00029863,2]
[311071284,1704893444938,-500.0,0.00029863,2]
[311071285,1704893444947,-1092.69,0.00029863,2]
[311071286,1704893444956,-2756.43,0.00029863,2]
[311071287,1704893444966,-532.77,0.00029863,2]
[311071288,1704893444975,-4344.41,0.00029863,2]
[311071289,1704893444984,-36439.63,0.00029863,2]
[311071290,1704893444994,-1095.23,0.00029863,2]
[311071291,1704893445003,-2067.4,0.00029863,2]
[311071292,1704893445012,-500.0,0.00029863,2]
[311071293,1704893445021,-9174.44,0.00029863,2]
[311071294,1704893445030,-500.0,0.00029863,2]
[311071295,1704893445039,-1518.78,0.00029863,2]
[311071296,1704893445049,-2773.62,0.00029863,2]
[311071297,1704893445060,-1573.03,0.00029863,2]
[311071298,1704893445070,-500.0,0.00029863,2]
[311071299,1704893445079,-1222.69,0.00029863,2]
[311071300,1704893445088,-500.0,0.00029863,2]
[311071301,1704893445098,-1991.13,0.00029863,2]
[311071302,1704893445107,-694.98,0.00029863,2]
[311071303,1704893445116,-710.57,0.00029863,2]
[311071304,1704893445126,-500.0,0.00029863,2]
[311071305,1704893445135,-3408.89,0.00029863,2]
[311071306,1704893445143,-1557.67,0.00029863,2]
[311071307,1704893445153,-1282.44,0.00029863,2]
[311071308,1704893445162,-1001.27,0.00029863,2]
[311071309,1704893445171,-673.46,0.00029863,2]
[311071310,1704893445181,-1209.64,0.00029863,2]
[311071311,1704893445190,-500.0,0.00029863,2]
[311071312,1704893445199,-1029.19,0.00029863,2]
[311071313,1704893445208,-500.0,0.00029863,2]
[311071314,1704893445217,-493.028705,0.00029863,2]
[311071315,1704893445227,-493.028705,0.00029863,2]
[311071316,1704893445236,-202.5,0.00029863,2]
[311071317,1704893445245,-202.5,0.00029863,2]
[311071318,1704893445254,-5000.0,0.00029922,5]
[311071319,1704893445264,-640.42681025,0.0003,4]
[311071320,1704893445273,-243.70040844,0.0003,4]
[311071321,1704893445283,-463.25005188,0.0003,4]
[311071322,1704893445292,-6971.6600529,0.0003,4]
[311071323,1704893445301,-2752.84129345,0.0003,2]
[311071324,1704893445317,-2187.82868359,0.0003,2]
[311071325,1704893445326,-698.58943438,0.0003,2]
[311071326,1704893445335,-200.06075442,0.0003,2]
[311071327,1704893445344,-1200.0,0.0003,4]
[311071328,1704893445353,-155.0,0.0003,4]
[311071329,1704893445363,-282.50801309,0.0003,3]
[311071330,1704893445372,-155.86967253,0.0003,2]
[311071331,1704893445382,-822.65,0.0003,2]
[311071332,1704893445392,-151.14511101,0.0003,14]
[311071333,1704893445402,-27072.04395763,0.0003,4]
[311071334,1704893445411,-686.6335406,0.0003,4]
[311071335,1704893445421,-2009.93476393,0.0003,2]
[311071336,1704893445432,-236.52252731,0.0003,7]
[311071337,1704893445441,-32780.12501289,0.0003,10]
[311071338,1704893445450,-1475.70472705,0.0003,12]
[311071340,1704893445459,-18548.99519009,0.0003,2]
[311071342,1704893445469,-7200.0,0.0003,3]
[311071343,1704893445479,-4337.25,0.0003,2]
[311071345,1704893445489,-479.59080699,0.0003,4]
[311071346,1704893445499,-3457.3,0.0003,2]